bitfinex/quotes_SOLUSD_20241105
["timestamp","ask_amount","ask_price","bid_price","bid_amount"]
[1730817218917,22.14423959,166.64,166.61,0.1]
[1730817219320,22.14423959,166.63,166.61,0.2]
[1730817219530,22.14423959,166.64,166.61,0.2]
[1730817219739,22.14423959,166.65,166.62,0.1]
[1730817220032,22.14423959,166.66,166.63,0.1]
[1730817220230,22.14423959,166.66,166.63,0.2]
[1730817220627,22.14423959,166.65,166.62,0.1]
[1730817220829,22.14423959,166.63,166.6,0.1]
[1730817221033,22.14423959,166.65,166.62,0.1]
[1730817221213,22.14423959,166.7,166.66,0.2]
[1730817221540,22.14423959,166.69,166.67,0.1]
[1730817221917,22.14423959,166.7,166.67,0.1]
[1730817222240,4.1988,166.72,166.67,0.1]
[1730817222241,22.14423959,166.69,166.67,0.1]
[1730817222745,22.14423959,166.68,166.63,0.1]
[1730817223036,22.14423959,166.64,166.6,0.1]
[1730817223217,0.12549,166.69,166.59,0.1]
[1730817223218,22.14423959,166.62,166.59,0.1]
[1730817223415,22.14423959,166.62,166.6,0.1]
[1730817223613,22.14423959,166.63,166.59,0.1]
[1730817223922,22.14423959,166.61,166.57,0.2]
[1730817224128,22.14423959,166.61,166.57,0.1]
[1730817224433,22.14423959,166.6,166.57,0.1]
[1730817224613,22.14423959,166.6,166.54,4.4031]
[1730817224939,22.14423959,166.59,166.56,0.1]
[1730817225116,22.14423959,166.6,166.55,0.1]
[1730817225441,22.14423959,166.6,166.56,0.1]
[1730817225643,22.14423959,166.6,166.54,14.911]
[1730817225851,22.14423959,166.6,166.55,0.2]
[1730817226233,22.14423959,166.62,166.59,0.1]
[1730817226429,22.14423959,166.62,166.57,0.2]
[1730817226831,22.14423959,166.61,166.57,0.1]
[1730817227142,22.14423959,166.61,166.58,0.1]
[1730817227645,22.14423959,166.61,166.56,14.9092]
[1730817227828,10.5,166.67,166.56,14.9092]
[1730817227829,22.14423959,166.6,166.56,10.6067]
[1730817228027,22.14423959,166.64,166.57,0.1]
[1730817228028,22.14423959,166.59,166.57,0.1]
[1730817228650,22.14423959,166.59,166.54,14.811]
[1730817228824,22.14423959,166.58,166.54,14.911]
[1730817229151,22.14423959,166.55,166.52,0.1]
[1730817229323,22.14423959,166.57,166.52,0.1]
[1730817229526,22.14423959,166.58,166.53,0.1]
[1730817229724,20.07153959,166.56,166.51,10.6098]
[1730817230147,22.14423959,166.56,166.52,0.1]
[1730817230354,0.12549,166.58,166.51,0.2]
[1730817230355,22.14423959,166.55,166.51,0.2]
[1730817230562,22.14423959,166.56,166.51,4.4039]
[1730817230848,22.14423959,166.59,166.54,0.2]
[1730817231049,22.14423959,166.58,166.54,0.2]
[1730817231227,22.14423959,166.57,166.54,0.2]
[1730817231426,4.2009,166.63,166.51,14.9137]
[1730817231427,22.14423959,166.56,166.51,14.9137]
[1730817231653,22.14423959,166.56,166.52,0.1]
[1730817231848,22.14423959,166.56,166.51,14.9137]
[1730817232049,22.14423959,166.55,166.51,14.7137]
[1730817232255,22.14423959,166.55,166.51,14.3137]
[1730817232430,22.14423959,166.55,166.51,14.8137]
[1730817232627,22.14423959,166.56,166.51,14.7137]
[1730817232834,22.14423959,166.56,166.51,14.8137]
[1730817233024,22.14423959,166.56,166.51,14.9137]
[1730817233226,22.14423959,166.56,166.52,0.1]
[1730817233432,22.14423959,166.58,166.53,0.2]
[1730817233625,22.14423959,166.56,166.53,0.1]
[1730817233851,22.14423959,166.57,166.53,0.1]
[1730817234042,16.009,166.64,166.55,22.24423959]
[1730817234242,16.009,166.64,166.51,0.1]
[1730817234243,22.14423959,166.56,166.51,0.1]
[1730817234560,22.14423959,166.52,166.44,4.3056]
[1730817234755,22.14423959,166.48,166.46,0.1]
[1730817235353,22.14423959,166.48,166.45,0.1]
[1730817235650,22.14423959,166.47,166.44,10.5138]
[1730817235959,22.14423959,166.45,166.41,6.37827337]
[1730817236251,22.14423959,166.42,166.41,6.27827337]
[1730817236795,22.14423959,166.42,166.39,0.4804568]
[1730817236796,22.14423959,166.43,166.4,0.1]
[1730817237067,22.14423959,166.41,166.39,0.4804568]
[1730817237365,0.25098,166.47,166.4,0.1]
[1730817237655,0.25098,166.47,166.41,0.1]
[1730817237958,0.37647,166.47,166.4,0.1]
[1730817238135,0.37647,166.47,166.41,0.1]
[1730817238539,22.14423959,166.43,166.41,0.1]
[1730817238731,22.14423959,166.42,166.39,0.4804568]
[1730817238928,22.14423959,166.4,166.39,0.5804568]
[1730817239132,22.14423959,166.4,166.39,0.4804568]
[1730817239750,22.14423959,166.43,166.39,0.4804568]
[1730817239955,22.14423959,166.42,166.4,0.1]
[1730817240147,4.2036,166.52,166.41,0.1]
[1730817240340,22.14423959,166.48,166.46,0.1]
[1730817240542,4.2036,166.52,166.43,0.1]
[1730817240543,22.14423959,166.47,166.43,0.1]
[1730817240747,22.14423959,166.5,166.47,0.1]
[1730817241065,22.14423959,166.51,166.49,0.1]
[1730817241244,22.14423959,166.5,166.46,14.718]
[1730817241447,22.14423959,166.49,166.46,14.718]
[1730817241749,22.14423959,166.48,166.44,0.1]
[1730817242045,22.14423959,166.48,166.44,4.3056]
[1730817242247,22.14423959,166.47,166.44,0.1]
[1730817242436,22.14423959,166.46,166.42,4.3062]
[1730817242860,22.14423959,166.43,166.39,0.4804568]
[1730817243042,22.14423959,166.4,166.39,0.4804568]
[1730817243353,22.26972959,166.4,166.39,0.4804568]
[1730817244061,22.14423959,166.42,166.39,0.4804568]
[1730817244235,22.14423959,166.42,166.4,0.1]
[1730817244434,0.1,166.53,166.41,22.24423959]
[1730817244653,22.14423959,166.49,166.46,0.1]
[1730817244847,4.204,166.51,166.45,22.14423959]
[1730817245053,4.2024,166.57,166.5,0.1]
[1730817245251,4.2024,166.57,166.51,0.1]
[1730817245455,4.2024,166.57,166.49,0.1]
[1730817245842,4.3024,166.57,166.48,0.1]
[1730817246163,22.14423959,166.53,166.49,0.1]
[1730817246340,22.14423959,166.53,166.48,0.1]
[1730817246542,22.14423959,166.54,166.49,0.1]
[1730817246736,22.14423959,166.54,166.48,26.44863959]
[1730817246950,22.14423959,166.53,166.48,0.1]
[1730817247152,26.34723959,166.55,166.49,0.1]
[1730817247350,22.14423959,166.54,166.5,0.1]
[1730817247855,22.26972959,166.54,166.5,0.1]
[1730817248035,26.47312959,166.54,166.5,0.1]
[1730817248233,26.47312959,166.54,166.49,0.1]
[1730817248433,26.47312959,166.54,166.5,0.1]
[1730817248844,0.12549,166.53,166.5,0.1]
[1730817249058,0.12549,166.53,166.48,26.44893959]
[1730817249254,22.14423959,166.52,166.5,0.1]
[1730817249560,0.12549,166.52,166.47,0.1]
[1730817249744,0.12549,166.51,166.47,22.14423959]
[1730817249949,0.12549,166.5,166.45,0.1]
[1730817250260,0.12549,166.49,166.47,0.1]
[1730817250444,0.12549,166.49,166.44,26.44963959]
[1730817250643,0.12549,166.49,166.44,22.14423959]
[1730817251041,22.26972959,166.47,166.41,22.24423959]
[1730817251246,22.26972959,166.47,166.39,32.0320568]
[1730817251247,0.12549,166.45,166.39,33.24179639]
[1730817251458,0.12549,166.45,166.42,0.1]
[1730817251670,1.6127,166.49,166.43,22.14423959]
[1730817251671,22.14423959,166.49,166.43,22.14423959]
[1730817251864,0.25098,166.45,166.4,0.1]
[1730817252070,0.12549,166.44,166.39,0.4804568]
[1730817252250,0.37647,166.42,166.39,0.4804568]
[1730817252578,0.37647,166.42,166.39,0.4902992]
[1730817252944,22.52070959,166.42,166.39,0.4902992]
[1730817253172,0.12549,166.44,166.4,22.14423959]
[1730817253352,0.12549,166.44,166.39,22.63453879]
[1730817253691,22.14423959,166.44,166.39,0.4902992]
[1730817253979,0.37647,166.42,166.39,0.4902992]
[1730817254144,22.52070959,166.4,166.39,0.4902992]
[1730817254343,22.39521959,166.4,166.39,0.4902992]
[1730817254568,22.52070959,166.4,166.39,0.4902992]
[1730817255139,68.44183318,166.4,166.39,0.4902992]
[1730817255341,68.44183318,166.4,166.34,0.3087181]
[1730817255342,0.12549,166.37,166.34,0.3087181]
[1730817255577,43.776884,166.39,166.34,0.3087181]
[1730817255578,46.17210359,166.35,166.34,0.3087181]
[1730817255754,23.90791959,166.35,166.34,0.3087181]
[1730817255951,67.68480359,166.35,166.34,0.3087181]
[1730817256154,84.97120359,166.35,166.34,0.3087181]
[1730817256765,64.97120359,166.35,166.34,0.3087181]
[1730817256965,84.97120359,166.35,166.34,0.3087181]
[1730817257285,0.37647,166.35,166.34,0.3087181]
[1730817257579,26.72860959,166.35,166.34,0.3087181]
[1730817258081,15.344,166.39,166.34,0.3087181]
[1730817258282,22.14423959,166.37,166.34,0.3087181]
[1730817258974,0.12549,166.36,166.34,0.3087181]
[1730817259183,22.26972959,166.35,166.34,0.3087181]
[1730817259678,14.7252,166.38,166.34,0.3087181]
[1730817259679,0.25098,166.37,166.34,0.3087181]
[1730817260555,10.5159,166.42,166.34,0.3087181]
[1730817260556,24.2059,166.43,166.35,22.14423959]
[1730817260761,4.2059,166.43,166.37,22.14423959]
[1730817260979,4.2059,166.43,166.36,0.1]
[1730817261283,4.2059,166.43,166.36,22.24423959]
[1730817261584,10.6134,166.46,166.34,4.5169181]
[1730817261585,22.14423959,166.46,166.4,22.24423959]
[1730817261768,42.93713959,166.49,166.43,22.14423959]
[1730817261966,4.2046,166.49,166.43,0.1]
[1730817262176,26.34883959,166.49,166.43,0.1]
[1730817262389,0.12549,166.48,166.41,4.2063]
[1730817262683,0.12549,166.48,166.4,10.6167]
[1730817262684,22.14423959,166.44,166.4,0.1]
[1730817262863,22.14423959,166.41,166.39,0.1]
[1730817263080,22.14423959,166.4,166.39,0.1]
[1730817263395,22.14423959,166.4,166.36,0.1]
[1730817263573,22.14423959,166.37,166.34,0.4087181]
[1730817263769,0.12549,166.39,166.34,0.4087181]
[1730817263770,22.14423959,166.36,166.34,0.3087181]
[1730817264879,26.35153959,166.38,166.34,0.4087181]
[1730817265495,22.14423959,166.37,166.34,0.3087181]
[1730817265694,22.14423959,166.37,166.34,0.4087181]
[1730817265897,22.14423959,166.35,166.34,0.3087181]
[1730817266589,0.25098,166.39,166.34,0.3087181]
[1730817266590,26.35203959,166.36,166.34,0.3087181]
[1730817266880,22.14423959,166.35,166.34,0.3087181]
[1730817267081,22.14423959,166.36,166.34,0.3087181]
[1730817267287,22.14423959,166.35,166.34,0.3087181]
[1730817267876,22.52070959,166.35,166.34,0.3087181]
[1730817268076,22.14423959,166.35,166.34,0.3087181]
[1730817268295,0.12549,166.35,166.34,0.3087181]
[1730817268475,26.47762959,166.35,166.34,0.3087181]
[1730817269080,10.6152,166.43,166.34,0.3087181]
[1730817269278,0.25098,166.41,166.34,0.3087181]
[1730817269482,22.14423959,166.37,166.34,0.4087181]
[1730817269806,0.12549,166.4,166.34,0.3087181]
[1730817269807,22.14423959,166.36,166.34,0.3087181]
[1730817269985,22.14423959,166.37,166.34,0.3087181]
[1730817270180,22.39521959,166.36,166.34,0.3087181]
[1730817270385,22.14423959,166.35,166.34,0.3087181]
[1730817270616,26.72860959,166.35,166.34,0.3087181]
[1730817270905,26.35213959,166.35,166.34,0.3087181]
[1730817271079,22.14423959,166.35,166.34,0.3087181]
[1730817271481,26.35203959,166.36,166.34,0.3087181]
[1730817271697,22.14423959,166.39,166.35,0.1]
[1730817271881,22.14423959,166.41,166.37,0.1]
[1730817272089,22.14423959,166.39,166.35,0.1]
[1730817272293,22.14423959,166.39,166.34,0.4087181]
[1730817272478,22.14423959,166.38,166.34,0.4087181]
[1730817272682,22.14423959,166.4,166.37,0.1]
[1730817272883,22.14423959,166.39,166.36,0.1]
[1730817273177,22.14423959,166.37,166.34,0.3087181]
[1730817273394,22.14423959,166.37,166.35,0.1]
[1730817273595,22.14423959,166.38,166.34,0.3087181]
[1730817273804,22.14423959,166.37,166.34,0.3087181]
[1730817274001,22.14423959,166.39,166.35,0.1]
[1730817274210,22.14423959,166.4,166.36,0.1]
[1730817274613,22.14423959,166.39,166.36,0.1]
[1730817274904,4.33139,166.43,166.37,0.1]
[1730817274905,22.14423959,166.4,166.37,0.1]
[1730817275486,22.14423959,166.4,166.38,0.1]
[1730817275790,22.14423959,166.41,166.38,0.1]
[1730817275987,22.14423959,166.4,166.38,0.1]
[1730817276502,22.14423959,166.39,166.36,0.1]
[1730817276894,22.14423959,166.4,166.37,0.1]
[1730817277286,26.35073959,166.41,166.38,0.1]
[1730817277488,4.2065,166.41,166.38,0.1]
[1730817277698,22.14423959,166.47,166.44,0.1]
[1730817277986,26.34893959,166.48,166.44,0.1]
[1730817278191,22.14423959,166.46,166.43,0.1]
[1730817278387,22.14423959,166.46,166.36,14.727]
[1730817278388,16.5619,166.47,166.35,6.3122]
[1730817278607,22.14423959,166.43,166.4,0.1]
[1730817278904,22.14423959,166.42,166.4,0.1]
[1730817279219,22.14423959,166.43,166.4,0.1]
[1730817279585,22.14423959,166.42,166.38,0.1]
[1730817279790,22.14423959,166.42,166.37,14.726]
[1730817279791,22.14423959,166.42,166.4,0.1]
[1730817280290,22.14423959,166.41,166.35,6.4122]
[1730817280493,0.12549,166.45,166.35,6.4122]
[1730817280494,22.14423959,166.38,166.35,6.4122]
[1730817280797,26.35153959,166.38,166.36,0.1]
[1730817280998,22.52070959,166.37,166.35,0.1]
[1730817281312,4.2073,166.38,166.35,0.1]
[1730817281487,26.35153959,166.38,166.35,0.1]
[1730817281851,22.14423959,166.36,166.34,0.3087181]
[1730817281987,22.14423959,166.35,166.34,0.3087181]
[1730817282307,22.26972959,166.36,166.34,0.4087181]
[1730817282507,22.14423959,166.36,166.34,0.4087181]
[1730817282713,22.14423959,166.37,166.35,0.1]
[1730817283004,22.14423959,166.38,166.36,0.1]
[1730817283700,0.12549,166.39,166.35,0.1]
[1730817284005,22.14423959,166.4,166.37,0.1]
[1730817284508,26.35013959,166.43,166.4,0.1]
[1730817284689,4.2057,166.44,166.41,0.1]
[1730817285010,26.34993959,166.44,166.42,0.1]
[1730817285210,4.2057,166.44,166.42,0.1]
[1730817285913,26.34963959,166.45,166.42,0.1]
[1730817286094,26.34963959,166.45,166.4,0.1]
[1730817286418,22.14423959,166.43,166.41,0.1]
[1730817286605,22.14423959,166.43,166.38,0.1]
[1730817286910,22.14423959,166.42,166.41,0.1]
[1730817287109,22.14423959,166.43,166.41,0.1]
[1730817287689,22.14423959,166.42,166.39,0.1]
[1730817288016,22.14423959,166.41,166.39,0.1]
[1730817288716,22.14423959,166.41,166.37,0.1]
[1730817288891,22.14423959,166.4,166.37,0.1]
[1730817289092,22.14423959,166.39,166.38,0.1]
[1730817289614,22.14423959,166.39,166.35,0.1]
[1730817289807,22.14423959,166.38,166.37,0.1]
[1730817290495,0.37647,166.37,166.34,0.3087181]
[1730817290688,22.14423959,166.35,166.34,0.4087181]
[1730817290915,22.14423959,166.35,166.34,0.3087181]
[1730817290916,26.60311959,166.35,166.34,0.3087181]
[1730817291086,26.72860959,166.35,166.34,0.3087181]
[1730817291291,22.14423959,166.36,166.35,0.1]
[1730817291500,22.14423959,166.37,166.34,0.3087181]
[1730817291706,22.14423959,166.36,166.35,0.1]
[1730817291903,22.14423959,166.36,166.34,0.3087181]
[1730817292093,22.14423959,166.36,166.35,0.1]
[1730817292303,22.14423959,166.36,166.34,0.4087181]
[1730817292492,22.52070959,166.35,166.34,0.4087181]
[1730817292913,26.72860959,166.35,166.34,0.4087181]
[1730817293107,26.35193959,166.36,166.34,0.4087181]
[1730817293319,22.14423959,166.35,166.34,0.4087181]
[1730817293906,22.14423959,166.36,166.34,0.4087181]
[1730817294223,22.14423959,166.35,166.34,0.4087181]
[1730817295412,4.2052,166.46,166.42,0.1]
[1730817295596,4.2052,166.46,166.41,0.1]
[1730817295597,22.14423959,166.45,166.41,0.1]
[1730817295800,22.14423959,166.44,166.41,0.1]
[1730817296003,22.14423959,166.44,166.42,0.1]
[1730817296204,22.26972959,166.45,166.43,0.1]
[1730817296405,17.0824,166.52,166.44,0.1]
[1730817296406,26.34923959,166.47,166.44,0.1]
[1730817296621,4.2046,166.49,166.45,0.1]
[1730817296800,4.2046,166.49,166.48,0.1]
[1730817296801,22.14423959,166.49,166.48,0.1]
[1730817296992,4.2029,166.55,166.38,6.2429]
[1730817296993,22.14423959,166.5,166.49,0.1]
[1730817297192,26.34833959,166.51,166.49,0.1]
[1730817297523,22.14423959,166.51,166.49,0.1]
[1730817297813,26.34693959,166.56,166.54,0.1]
[1730817298218,4.2027,166.56,166.55,0.1]
[1730817298422,26.34693959,166.56,166.55,0.1]
[1730817298799,22.14423959,166.57,166.55,0.1]
[1730817299327,22.14423959,166.6,166.57,0.1]
[1730817299503,4.2011,166.62,166.58,0.1]
[1730817299504,22.14423959,166.61,166.58,0.1]
[1730817299695,26.34533959,166.62,166.59,0.1]
[1730817299900,22.14423959,166.6,166.59,0.1]
[1730817300117,22.14423959,166.61,166.59,0.1]
[1730817300301,22.14423959,166.6,166.56,0.1]
[1730817300507,22.14423959,166.59,166.58,0.1]
[1730817300718,4.2011,166.62,166.6,0.1]
[1730817300919,0.3087181,166.64,166.63,0.1]
[1730817302409,0.3087181,166.64,166.63,22.24423959]
[1730817302630,0.3087181,166.64,166.63,0.1]
[1730817302806,4.5094181,166.64,166.63,0.1]
[1730817303005,4.5094181,166.64,166.63,22.24423959]
[1730817303006,0.3087181,166.64,166.63,22.24423959]
[1730817303208,0.3087181,166.64,166.63,26.44513959]
[1730817303815,22.45295769,166.72,166.71,0.1]
[1730817304026,0.3087181,166.72,166.71,0.1]
[1730817304207,22.45295769,166.72,166.71,0.1]
[1730817305222,22.45295769,166.72,166.69,0.1]
[1730817305425,22.45295769,166.72,166.71,0.1]
[1730817305727,0.3087181,166.72,166.71,0.1]
[1730817306114,22.45295769,166.72,166.71,0.1]
[1730817306515,26.65165769,166.72,166.68,0.1]
[1730817306712,0.25098,166.71,166.66,0.1]
[1730817306933,22.14423959,166.67,166.66,0.1]
[1730817307128,0.12549,166.7,166.67,0.1]
[1730817307324,26.46932959,166.68,166.67,0.1]
[1730817307635,26.59481959,166.68,166.67,0.1]
[1730817307808,26.46932959,166.68,166.67,0.1]
[1730817308016,26.34383959,166.68,166.67,0.1]
[1730817308216,0.12549,166.67,166.64,6.1083]
[1730817308417,26.46932959,166.68,166.59,26.34593959]
[1730817308418,0.37647,166.64,166.61,0.1]
[1730817308623,22.14423959,166.62,166.57,0.1]
[1730817308819,22.14423959,166.62,166.6,0.1]
[1730817309016,0.37647,166.64,166.6,0.1]
[1730817309017,22.39521959,166.61,166.6,0.1]
[1730817309429,26.59661959,166.61,166.6,0.1]
[1730817309615,0.37647,166.6,166.55,0.1]
[1730817309818,0.12549,166.57,166.55,0.1]
[1730817310018,22.14423959,166.59,166.53,22.24423959]
[1730817310243,22.26972959,166.6,166.58,0.1]
[1730817310427,0.12549,166.58,166.52,0.1]
[1730817310627,22.14423959,166.58,166.55,0.1]
[1730817310834,0.12549,166.59,166.55,0.1]
[1730817311036,22.14423959,166.58,166.55,0.1]
[1730817311341,22.14423959,166.58,166.51,0.1]
[1730817311342,4.2031,166.54,166.51,0.1]
[1730817311543,26.34733959,166.54,166.53,0.1]
[1730817311922,22.14423959,166.56,166.55,0.1]
[1730817312245,0.3087181,166.72,166.71,0.1]
[1730817312444,22.45295769,166.72,166.7,0.1]
[1730817312754,22.45295769,166.72,166.56,42.00038873]
[1730817312755,0.1,166.55,166.47,22.14423959]
[1730817313051,0.1,166.45,166.43,0.3087181]
[1730817313222,0.1,166.47,166.44,22.14423959]
[1730817313428,0.1,166.46,166.44,22.14423959]
[1730817313645,0.1,166.45,166.44,22.14423959]
[1730817313831,0.2,166.5,166.43,4.5144181]
[1730817314018,0.1,166.44,166.43,0.3087181]
[1730817314746,0.1,166.49,166.43,15.0293181]
[1730817315441,0.1,166.51,166.43,15.0293181]
[1730817315648,0.1,166.55,166.43,15.0293181]
[1730817315953,0.1,166.5,166.49,22.14423959]
[1730817316256,0.2,166.53,166.49,22.14423959]
[1730817316423,0.2,166.53,166.5,22.14423959]
[1730817316623,0.2,166.53,166.51,22.14423959]
[1730817316840,0.2,166.53,166.52,22.14423959]
[1730817317037,0.2,166.53,166.51,22.14423959]
[1730817317234,0.1,166.54,166.52,22.14423959]
[1730817317426,0.1,166.56,166.53,22.14423959]
[1730817317627,0.1,166.57,166.55,36.02278897]
[1730817317853,0.1,166.59,166.56,36.02278897]
[1730817318066,0.1,166.59,166.58,36.02278897]
[1730817318250,0.1,166.58,166.57,36.02278897]
[1730817318555,0.1,166.58,166.56,36.02278897]
[1730817318730,0.2,166.58,166.56,36.02278897]
[1730817318934,0.1,166.55,166.53,36.02278897]
[1730817319158,0.1,166.58,166.54,36.02278897]
[1730817319340,0.1,166.58,166.56,36.02278897]
[1730817319551,0.1,166.57,166.56,36.02278897]
[1730817319859,0.1,166.59,166.56,40.22528897]
[1730817320735,0.1,166.59,166.57,36.02278897]
[1730817321155,0.2,166.56,166.54,50.73368897]
[1730817322064,36.02278897,166.64,166.52,40.22628897]
[1730817322065,0.12549,166.58,166.52,40.22628897]
[1730817322232,36.39925897,166.58,166.51,36.02278897]
[1730817322432,36.39925897,166.58,166.46,36.02278897]
[1730817322433,36.02278897,166.52,166.46,36.02278897]
[1730817322731,36.02278897,166.54,166.47,36.02278897]
[1730817322936,36.39925897,166.53,166.47,36.02278897]
[1730817323231,36.39925897,166.53,166.45,4.2053]
[1730817323232,36.14827897,166.49,166.44,10.5138]
[1730817323456,0.25098,166.48,166.43,36.33150707]
[1730817323637,36.14827897,166.46,166.43,0.3087181]
[1730817324059,0.25098,166.44,166.43,0.3087181]
[1730817324264,36.39925897,166.44,166.43,0.3087181]
[1730817324436,0.25098,166.44,166.43,0.3087181]
[1730817324636,0.12549,166.44,166.43,0.3087181]
[1730817324956,0.25098,166.44,166.43,0.3087181]
[1730817325153,36.02278897,166.48,166.43,0.3087181]
[1730817325346,4.2045,166.49,166.43,0.3087181]
[1730817325347,36.02278897,166.46,166.43,0.3087181]
[1730817325552,0.12549,166.44,166.43,0.3087181]
[1730817325857,0.25098,166.47,166.43,0.3087181]
[1730817325858,36.27376897,166.47,166.43,0.3087181]
[1730817326266,0.12549,166.45,166.43,0.3087181]
[1730817326740,0.12549,166.46,166.43,0.3087181]
[1730817326741,0.25098,166.48,166.44,36.02278897]
[1730817326948,36.02278897,166.53,166.46,36.02278897]
[1730817327164,36.02278897,166.53,166.47,36.02278897]
[1730817327464,36.02278897,166.55,166.49,36.02278897]
[1730817327663,36.02278897,166.55,166.44,14.7199]
[1730817327664,36.02278897,166.54,166.48,36.02278897]
[1730817327837,36.02278897,166.55,166.49,36.02278897]
[1730817328239,0.12549,166.55,166.5,36.02278897]
[1730817328447,36.02278897,166.57,166.51,36.02278897]
[1730817329337,36.02278897,166.54,166.48,50.73918897]
[1730817329554,4.2023,166.58,166.48,50.73918897]
[1730817329555,36.02278897,166.55,166.49,36.02278897]
[1730817329743,36.02278897,166.57,166.51,36.02278897]
[1730817329944,36.02278897,166.56,166.51,36.02278897]
[1730817330145,36.02278897,166.56,166.5,36.02278897]
[1730817330447,36.14827897,166.55,166.49,36.02278897]
[1730817331247,4.2026,166.57,166.52,36.02278897]
[1730817331248,0.25098,166.57,166.52,36.02278897]
[1730817331563,40.22418897,166.61,166.55,36.02278897]
[1730817331773,36.02278897,166.6,166.54,36.02278897]
[1730817332065,36.02278897,166.58,166.52,36.02278897]
[1730817332443,40.22468897,166.59,166.53,36.02278897]
[1730817332769,0.12549,166.58,166.53,36.02278897]
[1730817332969,36.14827897,166.58,166.52,36.02278897]
[1730817333135,36.02278897,166.55,166.49,36.02278897]
[1730817333536,0.25098,166.52,166.47,36.02278897]
[1730817333735,36.27376897,166.52,166.46,36.02278897]
[1730817333964,0.25098,166.52,166.47,36.02278897]
[1730817334463,36.02278897,166.55,166.5,36.02278897]
[1730817334669,0.25098,166.55,166.5,36.02278897]
[1730817334961,0.12549,166.54,166.49,36.02278897]
[1730817335157,36.02278897,166.53,166.48,36.02278897]
[1730817335354,0.37647,166.52,166.46,10.513]
[1730817335563,36.14827897,166.49,166.43,36.33150707]
[1730817335741,36.14827897,166.49,166.44,36.02278897]
[1730817335742,0.12549,166.48,166.44,36.02278897]
[1730817335952,36.02278897,166.51,166.45,36.02278897]
[1730817336165,0.25098,166.5,166.45,36.02278897]
[1730817336567,40.47796897,166.5,166.44,40.22838897]
[1730817336774,40.47796897,166.5,166.44,36.02278897]
[1730817337148,36.02278897,166.47,166.43,0.3087181]
[1730817337349,0.25098,166.47,166.43,36.33150707]
[1730817337539,23.902374,166.54,166.46,36.02278897]
[1730817337744,36.14827897,166.53,166.47,36.02278897]
[1730817338038,0.25098,166.52,166.47,36.02278897]
[1730817338353,36.27376897,166.52,166.46,36.02278897]
[1730817338864,0.12549,166.52,166.47,36.02278897]
[1730817339064,0.12549,166.53,166.49,36.02278897]
[1730817339369,36.02278897,166.57,166.51,36.02278897]
[1730817339743,0.12549,166.54,166.49,36.02278897]
[1730817339943,36.02278897,166.55,166.49,36.02278897]
[1730817340163,36.02278897,166.56,166.5,36.02278897]
[1730817340346,36.02278897,166.55,166.49,36.02278897]
[1730817340550,36.02278897,166.5,166.45,36.02278897]
[1730817340867,40.22708897,166.5,166.44,36.02278897]
[1730817341267,40.22708897,166.5,166.45,36.02278897]
[1730817341458,4.2043,166.5,166.45,36.02278897]
[1730817341638,36.14827897,166.49,166.43,46.84640707]
[1730817341839,0.12549,166.47,166.43,0.3087181]
[1730817342262,40.22708897,166.5,166.44,36.02278897]
[1730817342444,4.2043,166.5,166.44,36.02278897]
[1730817342649,0.12549,166.49,166.45,36.02278897]
[1730817342846,21.1109,166.58,166.44,4.2055]
[1730817342847,36.02278897,166.54,166.48,36.02278897]
[1730817343267,36.02278897,166.53,166.47,36.02278897]
[1730817343569,36.02278897,166.54,166.48,36.02278897]
[1730817343750,0.12549,166.53,166.48,36.02278897]
[1730817344358,36.02278897,166.56,166.5,36.02278897]
[1730817344670,0.12549,166.54,166.5,36.02278897]
[1730817344872,40.22438897,166.6,166.53,36.02278897]
[1730817345173,36.02278897,166.58,166.52,36.02278897]
[1730817345667,36.02278897,166.59,166.53,36.02278897]
[1730817345853,4.2016,166.6,166.55,36.02278897]
[1730817346051,4.2016,166.6,166.51,6.5972]
[1730817346052,36.02278897,166.59,166.53,36.02278897]
[1730817346247,0.12549,166.58,166.54,36.02278897]
[1730817346479,36.27376897,166.59,166.53,36.02278897]
[1730817346656,0.12549,166.58,166.53,36.02278897]